fUSD/lending_fUSD_20250113
["ID","MTS","AMOUNT","RATE_DAILY","PERIOD"]
[348773041,1736779832392,-716.27,9.151e-05,2]
[348773043,1736779832401,-200.0,9.152e-05,2]
[348773045,1736779832411,-857.09,9.605e-05,2]
[348773047,1736779832420,-293.0,9.69e-05,2]
[348773049,1736779832429,-162.89,9.712e-05,2]
[348773051,1736779832439,-396.5829,9.886e-05,2]
[348773053,1736779832449,-561.9792,9.887e-05,2]
[348773055,1736779832459,-320.1703,9.887e-05,2]
[348773057,1736779832468,-269.12881666,9.975e-05,2]
[348773059,1736779832477,-10084.51080642,9.976e-05,2]
[348773063,1736779832511,-290.54957082,9.976e-05,2]
[348773069,1736779832559,-903.4025,9.976e-05,2]
[348773071,1736779832570,-3349.99999959,9.976e-05,2]
[348773072,1736779832581,-304.98654389,9.976e-05,2]
[348773073,1736779832612,-1337.76663007,9.976e-05,2]
[348773074,1736779832622,-150.0,9.976e-05,2]
[348773075,1736779832631,-1508.33336996,9.977e-05,2]
[348773076,1736779832642,-393.04398086,9.977e-05,2]
[348773077,1736779832652,-250.31328188,9.977e-05,2]
[348773078,1736779832663,-901.2003,9.977e-05,2]
[348773079,1736779832675,-324.14199,9.977e-05,2]
[348773080,1736779832723,-296.8966,9.977e-05,2]
[348773081,1736779832735,-450.091011,9.977e-05,2]
[348773082,1736779832747,-841.22561697,9.977e-05,2]
[348773083,1736779832758,-256.12499925,9.977e-05,2]
[348773084,1736779832770,-555.6,9.977e-05,2]
[348773085,1736779832782,-2950.0,9.977e-05,2]
[348773087,1736779832797,-476.51238719,9.977e-05,2]
[348773089,1736779832812,-7067.73251368,9.977e-05,2]
[348773090,1736779832822,-269.12881666,9.983e-05,2]
[348773092,1736779832831,-809.3,9.985e-05,2]
[348773093,1736779832841,-682.68,9.985e-05,2]
[348773094,1736779832850,-500.0,9.985e-05,2]
[348773096,1736779832860,-1545.09,9.985e-05,2]
[348773098,1736779832869,-574.74,9.985e-05,2]
[348773100,1736779832879,-635.08254279,9.985e-05,2]
[348773104,1736779832905,-200.63745721,9.985e-05,2]
[348773106,1736779832914,-500.0,9.985e-05,2]
[348773108,1736779832924,-478.57108855,9.986e-05,2]
[348773110,1736779832933,-87.65705424,9.986e-05,2]
[348773288,1736779838489,-345.5281603,9.985e-05,2]
[348773289,1736779838501,-154.4718397,9.985e-05,2]
[348773290,1736779838511,-412.34294576,9.986e-05,2]
[348773291,1736779838520,-500.58910128,9.986e-05,2]
[348773292,1736779838530,-500.0,9.986e-05,2]
[348773293,1736779838539,-500.0,9.986e-05,2]
[348773294,1736779838548,-500.0,9.986e-05,2]
[348773295,1736779838561,-500.0,9.986e-05,2]
[348773296,1736779838571,-500.0,9.986e-05,2]
[348773297,1736779838580,-500.0,9.986e-05,2]
[348773298,1736779838590,-683.99,9.986e-05,2]
[348773299,1736779838599,-518.54,9.986e-05,2]
[348773300,1736779838609,-500.0,9.986e-05,2]
[348773301,1736779838619,-518.6,9.986e-05,2]
[348773302,1736779838628,-500.0,9.986e-05,2]
[348773303,1736779838638,-500.0,9.986e-05,2]
[348773304,1736779838647,-500.0,9.986e-05,2]
[348773305,1736779838656,-500.0,9.986e-05,2]
[348773306,1736779838666,-500.0,9.986e-05,2]
[348773307,1736779838675,-500.0,9.986e-05,2]
[348773308,1736779838684,-500.0,9.986e-05,2]
[348773309,1736779838694,-500.0,9.986e-05,2]
[348773310,1736779838703,-500.0,9.986e-05,2]
[348773311,1736779838713,-500.0,9.986e-05,2]
[348773312,1736779838722,-500.0,9.986e-05,2]
[348773313,1736779838732,-500.0,9.986e-05,2]
[348773314,1736779838742,-500.0,9.986e-05,2]
[348773315,1736779838751,-500.0,9.986e-05,2]
[348773316,1736779838760,-500.0,9.986e-05,2]
[348773317,1736779838770,-302.76207191,9.986e-05,2]
[348773318,1736779838779,-632.25,9.986e-05,2]
[348773319,1736779838789,-500.0,9.986e-05,2]
[348773320,1736779838798,-500.0,9.986e-05,2]
[348773321,1736779838812,-500.0,9.986e-05,2]
[348773322,1736779838822,-567.8,9.986e-05,2]
[348773323,1736779838832,-500.0,9.986e-05,2]
[348773324,1736779838842,-500.0,9.986e-05,2]
[348773325,1736779838851,-500.0,9.986e-05,2]
[348773326,1736779838861,-500.0,9.986e-05,2]
[348773327,1736779838871,-500.0,9.986e-05,2]
[348773328,1736779838880,-500.0,9.986e-05,2]
[348773329,1736779838890,-500.0,9.986e-05,2]
[348773330,1736779838900,-500.0,9.986e-05,2]
[348773331,1736779838909,-500.0,9.986e-05,2]
[348773332,1736779838920,-500.0,9.986e-05,2]
[348773333,1736779838929,-500.0,9.986e-05,2]
[348773334,1736779838938,-500.0,9.986e-05,2]
[348773335,1736779838948,-1008.24,9.986e-05,2]
[348773336,1736779838957,-500.0,9.986e-05,2]
[348773337,1736779838967,-500.0,9.986e-05,2]
[348773338,1736779838976,-500.0,9.986e-05,2]
[348773339,1736779838986,-911.95,9.986e-05,2]
[348773340,1736779838996,-500.0,9.986e-05,2]
[348773341,1736779839006,-500.0,9.986e-05,2]
[348773342,1736779839015,-500.0,9.986e-05,2]
[348773343,1736779839025,-500.0,9.986e-05,2]
[348773344,1736779839034,-500.0,9.986e-05,2]
[348773345,1736779839045,-500.0,9.986e-05,2]
[348773346,1736779839059,-444.58084135,9.986e-05,2]
[348773347,1736779839073,-55.41915865,9.986e-05,2]
[348773348,1736779839083,-500.0,9.986e-05,2]
[348773349,1736779839093,-500.0,9.986e-05,2]
[348773350,1736779839103,-626.99,9.986e-05,2]
[348773351,1736779839113,-500.0,9.986e-05,2]
[348773352,1736779839123,-500.0,9.986e-05,2]
[348773353,1736779839132,-402.19449723,9.986e-05,2]
[348773354,1736779839144,-97.80550277,9.986e-05,2]
[348773355,1736779839154,-560.45,9.986e-05,2]
[348773356,1736779839164,-500.0,9.986e-05,2]
[348773357,1736779839173,-500.0,9.986e-05,2]
[348773358,1736779839187,-500.0,9.986e-05,2]
[348773359,1736779839197,-500.0,9.986e-05,2]
[348773360,1736779839206,-500.0,9.986e-05,2]
[348773361,1736779839215,-238.54191946,9.986e-05,2]
[348773362,1736779839240,-261.45808054,9.986e-05,2]
[348773363,1736779839249,-500.0,9.986e-05,2]
[348773364,1736779839260,-428.41108678,9.986e-05,2]
[348773365,1736779839274,-71.58891322,9.986e-05,2]
[348773366,1736779839283,-328.04013045,9.986e-05,2]
[348773367,1736779839294,-720.47986955,9.986e-05,2]
[348773368,1736779839305,-756.35,9.986e-05,2]
[348773369,1736779839315,-500.0,9.986e-05,2]
[348773370,1736779839324,-500.0,9.986e-05,2]
[348773371,1736779839334,-500.0,9.986e-05,2]
[348773372,1736779839343,-47.17013044,9.986e-05,2]
[348773373,1736779839355,-452.82986956,9.986e-05,2]
[348773374,1736779839364,-1082.36,9.986e-05,2]
[348773375,1736779839373,-500.0,9.986e-05,2]
[348773376,1736779839383,-776.60256624,9.986e-05,2]
[348773377,1736779839394,-7.49743376,9.986e-05,2]
[348773378,1736779839403,-500.0,9.986e-05,2]
[348773379,1736779839413,-500.0,9.986e-05,2]
[348773380,1736779839422,-175.50256624,9.986e-05,2]
[348773381,1736779839460,-324.49743376,9.986e-05,2]
[348773382,1736779839469,-636.05,9.986e-05,2]
[348773383,1736779839479,-500.0,9.986e-05,2]
[348773384,1736779839488,-500.0,9.986e-05,2]
[348773385,1736779839497,-500.0,9.986e-05,2]
[348773386,1736779839506,-0.10866414,9.986e-05,2]
[348773387,1736779839518,-499.89133586,9.986e-05,2]
[348773388,1736779839527,-500.0,9.986e-05,2]
[348773389,1736779839536,-500.0,9.986e-05,2]
[348773390,1736779839545,-500.0,9.986e-05,2]
[348773391,1736779839558,-947.53,9.986e-05,2]
[348773392,1736779839568,-500.0,9.986e-05,2]
[348773393,1736779839577,-500.0,9.986e-05,2]
[348773394,1736779839587,-711.04,9.986e-05,2]
[348773395,1736779839596,-859.02,9.986e-05,2]
[348773396,1736779839605,-502.08275398,9.986e-05,2]
[348773397,1736779839615,-505.55,9.986e-05,2]
[348773399,1736779839624,-500.0,9.986e-05,2]
[348773400,1736779839633,-500.0,9.986e-05,2]
[348773401,1736779839643,-802.41,9.986e-05,2]
[348773403,1736779839652,-500.0,9.986e-05,2]
[348773405,1736779839661,-500.0,9.986e-05,2]
[348773407,1736779839671,-500.0,9.986e-05,2]
[348773409,1736779839679,-500.0,9.986e-05,2]
[348773411,1736779839688,-500.0,9.986e-05,2]
[348773413,1736779839698,-500.0,9.986e-05,2]
[348773415,1736779839712,-500.0,9.986e-05,2]
[348773417,1736779839721,-500.0,9.986e-05,2]
[348773419,1736779839731,-500.0,9.986e-05,2]
[348773421,1736779839741,-500.0,9.986e-05,2]
[348773423,1736779839751,-500.0,9.986e-05,2]
[348773425,1736779839761,-500.0,9.986e-05,2]
[348773427,1736779839770,-500.0,9.986e-05,2]
[348773429,1736779839780,-500.0,9.986e-05,2]
[348773431,1736779839789,-500.0,9.986e-05,2]
[348773433,1736779839799,-500.0,9.986e-05,2]
[348773435,1736779839813,-500.0,9.986e-05,2]
[348773437,1736779839823,-327.07745922,9.986e-05,2]
[348773439,1736779839833,-500.0,9.986e-05,2]
[348773441,1736779839842,-500.0,9.986e-05,2]
[348773443,1736779839852,-500.32590016,9.986e-05,2]
[348773445,1736779839862,-500.0,9.986e-05,2]
[348773447,1736779839872,-500.0,9.986e-05,2]
[348773449,1736779839882,-500.0,9.986e-05,2]
[348773452,1736779839891,-500.0,9.986e-05,2]
[348773454,1736779839900,-500.0,9.986e-05,2]
[348773457,1736779839910,-500.0,9.986e-05,2]
[348773459,1736779839920,-500.0,9.986e-05,2]
[348773463,1736779839931,-500.0,9.986e-05,2]
[348773467,1736779839942,-500.0,9.986e-05,2]
[348773470,1736779839952,-771.98,9.986e-05,2]
[348773474,1736779839962,-500.0,9.986e-05,2]
[348773478,1736779839971,-500.0,9.986e-05,2]
[348773479,1736779839981,-500.0,9.986e-05,2]
[348773481,1736779839990,-500.0,9.986e-05,2]
[348773483,1736779840000,-500.0,9.986e-05,2]
[348773486,1736779840010,-500.0,9.986e-05,2]
[348773488,1736779840019,-500.0,9.986e-05,2]
[348773491,1736779840029,-500.0,9.986e-05,2]
[348773493,1736779840039,-500.0,9.986e-05,2]
[348773495,1736779840049,-500.0,9.986e-05,2]
[348773497,1736779840063,-500.0,9.986e-05,2]
[348773499,1736779840072,-500.0,9.986e-05,2]
[348773501,1736779840081,-500.0,9.986e-05,2]
[348773503,1736779840091,-3294.09,9.986e-05,2]
[348773505,1736779840100,-500.0,9.986e-05,2]
[348773507,1736779840110,-500.0,9.986e-05,2]
[348773511,1736779840119,-500.0,9.986e-05,2]
[348773513,1736779840129,-500.0,9.986e-05,2]
[348773515,1736779840139,-500.0,9.986e-05,2]
[348773517,1736779840148,-500.0,9.986e-05,2]
[348773519,1736779840158,-500.0,9.986e-05,2]
[348773521,1736779840168,-1725.65,9.986e-05,2]
[348773523,1736779840179,-500.0,9.986e-05,2]
[348773525,1736779840190,-500.0,9.986e-05,2]
[348773527,1736779840200,-500.0,9.986e-05,2]
[348773529,1736779840209,-500.0,9.986e-05,2]
[348773531,1736779840219,-500.0,9.986e-05,2]
[348773536,1736779840229,-500.0,9.986e-05,2]
[348773539,1736779840238,-500.0,9.986e-05,2]
[348773541,1736779840248,-500.0,9.986e-05,2]
[348773543,1736779840257,-500.0,9.986e-05,2]
[348773544,1736779840267,-5562.09,9.986e-05,2]
[348773546,1736779840277,-500.0,9.986e-05,2]
[348773548,1736779840286,-500.0,9.986e-05,2]
[348773550,1736779840295,-500.0,9.986e-05,2]
[348773552,1736779840305,-500.0,9.986e-05,2]
[348773553,1736779840315,-507.78,9.986e-05,2]
[348773554,1736779840324,-500.0,9.986e-05,2]
[348773556,1736779840334,-1028.35,9.986e-05,2]
[348773557,1736779840343,-500.0,9.986e-05,2]
[348773558,1736779840352,-500.0,9.986e-05,2]
[348773559,1736779840362,-500.0,9.986e-05,2]
[348773560,1736779840371,-500.0,9.986e-05,2]
[348773561,1736779840380,-500.0,9.986e-05,2]
[348773562,1736779840389,-614.87,9.986e-05,2]
[348773563,1736779840399,-500.0,9.986e-05,2]
[348773564,1736779840409,-500.0,9.986e-05,2]
[348773565,1736779840418,-885.67,9.986e-05,2]
[348773566,1736779840428,-687.17,9.986e-05,2]
[348773567,1736779840438,-500.0,9.986e-05,2]
[348773568,1736779840447,-500.0,9.986e-05,2]
[348773569,1736779840456,-500.0,9.986e-05,2]
[348773570,1736779840466,-500.0,9.986e-05,2]
[348773571,1736779840475,-500.0,9.986e-05,2]
[348773572,1736779840484,-500.0,9.986e-05,2]
[348773573,1736779840494,-1166.47,9.986e-05,2]
[348773574,1736779840503,-500.0,9.986e-05,2]
[348773575,1736779840512,-3094.04,9.986e-05,2]
[348773576,1736779840522,-500.0,9.986e-05,2]
[348773577,1736779840531,-500.0,9.986e-05,2]
[348773578,1736779840541,-500.0,9.986e-05,2]
[348773579,1736779840551,-500.0,9.986e-05,2]
[348773580,1736779840564,-500.0,9.986e-05,2]
[348773581,1736779840575,-500.0,9.986e-05,2]
[348773582,1736779840585,-1345.31,9.986e-05,2]
[348773583,1736779840595,-500.0,9.986e-05,2]
[348773584,1736779840604,-500.0,9.986e-05,2]
[348773585,1736779840615,-828.61,9.986e-05,2]
[348773586,1736779840624,-500.0,9.986e-05,2]
[348773587,1736779840634,-500.0,9.986e-05,2]
[348773588,1736779840643,-500.0,9.986e-05,2]
[348773589,1736779840653,-500.0,9.986e-05,2]
[348773590,1736779840663,-500.0,9.986e-05,2]
[348773591,1736779840671,-500.0,9.986e-05,2]
[348773592,1736779840681,-500.0,9.986e-05,2]
[348773593,1736779840690,-500.0,9.986e-05,2]
[348773594,1736779840699,-500.0,9.986e-05,2]
[348773595,1736779840708,-500.0,9.986e-05,2]
[348773596,1736779840718,-500.0,9.986e-05,2]
[348773597,1736779840728,-500.0,9.986e-05,2]
[348773598,1736779840738,-500.0,9.986e-05,2]
[348773599,1736779840747,-3850.07,9.986e-05,2]
[348773600,1736779840757,-500.0,9.986e-05,2]
[348773601,1736779840766,-500.0,9.986e-05,2]
[348773602,1736779840776,-500.0,9.986e-05,2]
[348773603,1736779840786,-500.0,9.986e-05,2]
[348773604,1736779840796,-500.0,9.986e-05,2]
[348773605,1736779840807,-500.0,9.986e-05,2]
[348773606,1736779840817,-1023.07,9.986e-05,2]
[348773607,1736779840827,-500.0,9.986e-05,2]
[348773608,1736779840836,-500.0,9.986e-05,2]
[348773609,1736779840846,-500.0,9.986e-05,2]
[348773610,1736779840855,-500.0,9.986e-05,2]
[348773611,1736779840865,-500.0,9.986e-05,2]
[348773612,1736779840875,-500.0,9.986e-05,2]
[348773613,1736779840884,-245.95255079,9.986e-05,2]
[348773614,1736779840899,-254.04744921,9.986e-05,2]
[348773615,1736779840909,-930.31,9.986e-05,2]
[348773616,1736779840918,-2424.96,9.986e-05,2]
[348773617,1736779840928,-500.0,9.986e-05,2]
[348773618,1736779840937,-500.0,9.986e-05,2]
[348773619,1736779840947,-500.0,9.986e-05,2]
[348773620,1736779840956,-500.0,9.986e-05,2]
[348773621,1736779840966,-500.0,9.986e-05,2]
[348773622,1736779840976,-166.59731834,9.986e-05,2]
[348773623,1736779840988,-333.40268166,9.986e-05,2]
[348773624,1736779840998,-500.0,9.986e-05,2]
[348773625,1736779841007,-500.0,9.986e-05,2]
[348773626,1736779841016,-500.0,9.986e-05,2]
[348773627,1736779841027,-500.0,9.986e-05,2]
[348773628,1736779841037,-817.18,9.986e-05,2]
[348773629,1736779841047,-584.01,9.986e-05,2]
[348773630,1736779841063,-500.0,9.986e-05,2]
[348773631,1736779841073,-500.0,9.986e-05,2]
[348773633,1736779841083,-500.0,9.986e-05,2]
[348773634,1736779841092,-329.36086463,9.986e-05,2]
[348773635,1736779841102,-500.0,9.986e-05,2]
[348773636,1736779841111,-500.0,9.986e-05,2]
[348773637,1736779841121,-500.0,9.986e-05,2]
[348773638,1736779841131,-881.04,9.986e-05,2]
[348773640,1736779841141,-500.0,9.986e-05,2]
[348773641,1736779841150,-651.95,9.986e-05,2]
[348773643,1736779841160,-2056.62,9.986e-05,2]
[348773644,1736779841169,-500.0,9.986e-05,2]
[348773646,1736779841180,-1755.19,9.986e-05,2]
[348773647,1736779841190,-500.0,9.986e-05,2]
[348773649,1736779841200,-500.0,9.986e-05,2]
[348773651,1736779841209,-500.0,9.986e-05,2]
[348773653,1736779841219,-500.0,9.986e-05,2]
[348773655,1736779841229,-1452.74,9.986e-05,2]
[348773656,1736779841239,-500.0,9.986e-05,2]
[348773657,1736779841248,-500.0,9.986e-05,2]
[348773659,1736779841260,-500.0,9.986e-05,2]
[348773661,1736779841269,-2017.84,9.986e-05,2]
[348773662,1736779841278,-500.0,9.986e-05,2]
[348773663,1736779841289,-689.65,9.986e-05,2]
[348773664,1736779841299,-500.0,9.986e-05,2]
[348773665,1736779841316,-500.0,9.986e-05,2]
[348773666,1736779841325,-1180.29,9.986e-05,2]
[348773667,1736779841334,-291.37059542,9.986e-05,2]
[348773668,1736779841346,-208.62940458,9.986e-05,2]
[348773669,1736779841356,-500.0,9.986e-05,2]
[348773670,1736779841366,-500.0,9.986e-05,2]
[348773671,1736779841375,-500.0,9.986e-05,2]
[348773672,1736779841385,-500.0,9.986e-05,2]
[348773673,1736779841394,-500.0,9.986e-05,2]
[348773674,1736779841403,-1540.87,9.986e-05,2]
[348773675,1736779841412,-500.0,9.986e-05,2]
[348773676,1736779841421,-500.0,9.986e-05,2]
[348773677,1736779841430,-500.0,9.986e-05,2]
[348773678,1736779841439,-500.0,9.986e-05,2]
[348773679,1736779841448,-500.0,9.986e-05,2]
[348773680,1736779841458,-500.0,9.986e-05,2]
[348773681,1736779841467,-500.0,9.986e-05,2]
[348773682,1736779841476,-500.0,9.986e-05,2]
[348773683,1736779841485,-500.0,9.986e-05,2]
[348773684,1736779841495,-500.0,9.986e-05,2]
[348773685,1736779841504,-704.17,9.986e-05,2]
[348773686,1736779841514,-500.0,9.986e-05,2]
[348773687,1736779841523,-90.82339496,9.986e-05,2]
[348773688,1736779841535,-409.17660504,9.986e-05,2]
[348773689,1736779841545,-500.0,9.986e-05,2]
[348773690,1736779841559,-1093.29,9.986e-05,2]
[348773691,1736779841568,-500.0,9.986e-05,2]
[348773692,1736779841579,-1046.82,9.986e-05,2]
[348773693,1736779841588,-1327.069977,9.986e-05,2]
[348773694,1736779841597,-342.12494949,9.986e-05,2]
[348773695,1736779841606,-500.0,9.986e-05,2]
[348773696,1736779841615,-500.0,9.986e-05,2]
[348773697,1736779841624,-500.0,9.986e-05,2]
[348773698,1736779841634,-500.0,9.986e-05,2]
[348773699,1736779841643,-500.0,9.986e-05,2]
[348773700,1736779841652,-500.0,9.986e-05,2]
[348773701,1736779841661,-500.0,9.986e-05,2]
[348773702,1736779841670,-500.0,9.986e-05,2]
[348773703,1736779841679,-743.46,9.986e-05,2]
[348773704,1736779841688,-2160.15,9.986e-05,2]
[348773705,1736779841698,-500.0,9.986e-05,2]
[348773706,1736779841707,-500.0,9.986e-05,2]
[348773707,1736779841717,-580.9,9.986e-05,2]
[348773708,1736779841726,-500.0,9.986e-05,2]
[348773709,1736779841735,-500.0,9.986e-05,2]
[348773710,1736779841744,-500.0,9.986e-05,2]
[348773711,1736779841753,-500.0,9.986e-05,2]
[348773712,1736779841763,-500.0,9.986e-05,2]
[348773713,1736779841773,-500.0,9.986e-05,2]
[348773714,1736779841781,-500.0,9.986e-05,2]
[348773715,1736779841791,-500.0,9.986e-05,2]
[348773716,1736779841800,-500.0,9.986e-05,2]
[348773717,1736779841814,-500.0,9.986e-05,2]
[348773718,1736779841823,-500.0,9.986e-05,2]
[348773719,1736779841832,-500.0,9.986e-05,2]
[348773720,1736779841842,-500.0,9.986e-05,2]
[348773721,1736779841851,-500.0,9.986e-05,2]
[348773722,1736779841860,-1608.95,9.986e-05,2]
[348773723,1736779841869,-500.0,9.986e-05,2]
[348773724,1736779841878,-500.0,9.986e-05,2]
[348773725,1736779841887,-500.0,9.986e-05,2]
[348773726,1736779841897,-500.0,9.986e-05,2]
[348773727,1736779841907,-500.0,9.986e-05,2]
[348773728,1736779841916,-500.0,9.986e-05,2]
[348773729,1736779841926,-500.0,9.986e-05,2]
[348773730,1736779841935,-595.80232169,9.986e-05,2]
[348773731,1736779841944,-786.12,9.986e-05,2]
[348773732,1736779841953,-379.95223723,9.986e-05,2]
[348773733,1736779841965,-120.04776277,9.986e-05,2]
[348773734,1736779841974,-1346.451048,9.986e-05,2]
[348773735,1736779841983,-500.0,9.986e-05,2]
[348773736,1736779841993,-500.0,9.986e-05,2]
[348773737,1736779842002,-500.0,9.986e-05,2]
[348773738,1736779842011,-500.0,9.986e-05,2]
[348773739,1736779842020,-227.63264715,9.986e-05,2]
[348773740,1736779842029,-500.0,9.986e-05,2]
[348773741,1736779842038,-500.0,9.986e-05,2]
[348773742,1736779842048,-500.0,9.986e-05,2]
[348773743,1736779842252,-901.56,9.986e-05,2]
[348773744,1736779842262,-500.0,9.986e-05,2]
[348773745,1736779842271,-500.0,9.986e-05,2]
[348773746,1736779842283,-500.0,9.986e-05,2]
[348773747,1736779842294,-2716.29,9.986e-05,2]
[348773748,1736779842304,-500.0,9.986e-05,2]
[348773749,1736779842316,-500.0,9.986e-05,2]
[348773750,1736779842326,-500.0,9.986e-05,2]
[348773751,1736779842335,-500.0,9.986e-05,2]
[348773752,1736779842344,-500.0,9.986e-05,2]
[348773753,1736779842354,-500.0,9.986e-05,2]
[348773754,1736779842364,-500.0,9.986e-05,2]
[348773755,1736779842373,-500.0,9.986e-05,2]
[348773756,1736779842384,-500.0,9.986e-05,2]
[348773757,1736779842393,-656.5,9.986e-05,2]
[348773758,1736779842403,-500.0,9.986e-05,2]
[348773759,1736779842412,-500.0,9.986e-05,2]
[348773760,1736779842421,-1804.87,9.986e-05,2]
[348773761,1736779842431,-500.0,9.986e-05,2]
[348773762,1736779842440,-500.0,9.986e-05,2]
[348773763,1736779842449,-500.0,9.986e-05,2]
[348773764,1736779842458,-1052.03,9.986e-05,2]
[348773765,1736779842467,-500.0,9.986e-05,2]
[348773766,1736779842476,-500.0,9.986e-05,2]
[348773767,1736779842487,-500.0,9.986e-05,2]
[348773768,1736779842496,-503.16128689,9.986e-05,2]
[348773769,1736779842507,-500.32994436,9.986e-05,2]
[348773770,1736779842518,-500.0,9.986e-05,2]
[348773771,1736779842528,-500.0,9.986e-05,2]
[348773772,1736779842538,-3293.38,9.986e-05,2]
[348773773,1736779842547,-500.0,9.986e-05,2]
[348773774,1736779842558,-500.0,9.986e-05,2]
[348773775,1736779842567,-500.0,9.986e-05,2]
[348773776,1736779842576,-500.0,9.986e-05,2]
[348773777,1736779842586,-500.0,9.986e-05,2]
[348773778,1736779842595,-500.0,9.986e-05,2]
[348773779,1736779842605,-500.0,9.986e-05,2]
[348773780,1736779842614,-500.0,9.986e-05,2]
[348773781,1736779842624,-500.0,9.986e-05,2]
[348773782,1736779842634,-283.45935467,9.986e-05,2]
[348773783,1736779842648,-216.54064533,9.986e-05,2]
[348773784,1736779842657,-500.0,9.986e-05,2]
[348773785,1736779842667,-1725.58,9.986e-05,2]
[348773786,1736779842677,-500.0,9.986e-05,2]
[348773787,1736779842687,-500.0,9.986e-05,2]
[348773788,1736779842696,-1955.15,9.986e-05,2]
[348773789,1736779842705,-500.0,9.986e-05,2]
[348773790,1736779842714,-500.0,9.986e-05,2]
[348773791,1736779842723,-500.0,9.986e-05,2]
[348773792,1736779842735,-316.0861043,9.986e-05,2]
[348773793,1736779842745,-500.0,9.986e-05,2]
[348773794,1736779842756,-500.0,9.986e-05,2]
[348773795,1736779842766,-500.0,9.986e-05,2]
[348773796,1736779842776,-500.0,9.986e-05,2]
[348773797,1736779842785,-500.0,9.986e-05,2]
[348773798,1736779842795,-500.0,9.986e-05,2]
[348773799,1736779842807,-1572.9,9.986e-05,2]
[348773800,1736779842817,-500.0,9.986e-05,2]
[348773801,1736779842827,-500.0,9.986e-05,2]
[348773802,1736779842836,-500.0,9.986e-05,2]
[348773803,1736779842846,-500.0,9.986e-05,2]
[348773804,1736779842856,-500.0,9.986e-05,2]
[348773805,1736779842866,-500.0,9.987e-05,2]
[348773806,1736779842876,-500.0,9.987e-05,2]
[348773807,1736779842886,-248.90160512,9.987e-05,2]
[348773808,1736779842895,-500.0,9.987e-05,2]
[348773809,1736779842905,-500.0,9.987e-05,2]
[348773810,1736779842914,-500.0,9.987e-05,2]
[348773812,1736779842924,-500.0,9.987e-05,2]
[348773813,1736779842934,-500.0,9.987e-05,2]
[348773815,1736779842943,-500.0,9.987e-05,2]
[348773817,1736779842953,-500.0,9.987e-05,2]
[348773819,1736779842962,-500.0,9.987e-05,2]
[348773821,1736779842972,-500.0,9.987e-05,2]
[348773822,1736779842982,-500.0,9.987e-05,2]
[348773824,1736779842991,-500.0,9.987e-05,2]
[348773826,1736779843001,-500.0,9.987e-05,2]
[348773828,1736779843010,-500.0,9.987e-05,2]
[348773830,1736779843020,-500.0,9.987e-05,2]
[348773832,1736779843030,-500.0,9.987e-05,2]
[348773834,1736779843039,-500.0,9.987e-05,2]
[348773837,1736779843050,-500.0,9.987e-05,2]
[348773840,1736779843063,-500.0,9.987e-05,2]
[348773843,1736779843073,-500.0,9.987e-05,2]
[348773846,1736779843082,-500.0,9.987e-05,2]
[348773849,1736779843091,-500.0,9.987e-05,2]
[348773854,1736779843101,-500.0,9.987e-05,2]
[348773858,1736779843110,-500.0,9.987e-05,2]
[348773863,1736779843120,-500.0,9.987e-05,2]
[348773867,1736779843129,-500.0,9.987e-05,2]
[348773871,1736779843139,-500.0,9.987e-05,2]
[348773876,1736779843149,-500.0,9.987e-05,2]
[348773881,1736779843159,-500.0,9.987e-05,2]
[348773884,1736779843169,-500.0,9.987e-05,2]
[348773886,1736779843180,-500.0,9.987e-05,2]
[348773889,1736779843192,-500.0,9.987e-05,2]
[348773893,1736779843201,-347.63221302,9.987e-05,2]
[348773896,1736779843210,-500.0,9.987e-05,2]
[348773899,1736779843220,-500.0,9.987e-05,2]
[348773902,1736779843232,-496.87206049,9.987e-05,2]
[348773906,1736779843245,-3.12793951,9.987e-05,2]